[Event "*** MasterClass Titled Tuesday Blitz"]
[Site "Chess.com"]
[Date "2017.08.01"]
[Round "6"]
[White "Rumpel-VK"]
[Black "Marcus_Harvey"]
[Result "1-0"]
[WhiteElo "2476"]
[BlackElo "2581"]
[TimeControl "180+2"]
[EndTime "14:19:33 PDT"]
[Termination "Rumpel-VK won by resignation"]

1. d4 {[%clk 0:01:47.9]} 1... e6 {[%clk 0:03:00.5]} 2. e4 {[%clk 0:01:48.1]}
2... d5 {[%clk 0:03:00.9]} 3. exd5 {[%clk 0:01:49.8]} 3... exd5 {[%clk
0:03:01.1]} 4. Nf3 {[%clk 0:01:51.6]} 4... Bd6 {[%clk 0:03:02.5]} 5. Bd3 {[%clk
0:01:52.1]} 5... Ne7 {[%clk 0:03:03.8]} 6. O-O {[%clk 0:01:51]} 6... Nbc6 {[%clk
0:03:03.1]} 7. c3 {[%clk 0:01:56.3]} 7... O-O {[%clk 0:02:59.9]} 8. Bg5 {[%clk
0:01:56.1]} 8... f6 {[%clk 0:02:57.4]} 9. Bh4 {[%clk 0:01:50.5]} 9... Nf5 {[%clk
0:02:58.7]} 10. Bg3 {[%clk 0:01:50]} 10... Nxg3 {[%clk 0:02:58.2]} 11. hxg3
{[%clk 0:01:51.7]} 11... Ne7 {[%clk 0:02:56.9]} 12. Nbd2 {[%clk 0:01:52.3]}
12... c6 {[%clk 0:02:56]} 13. Qc2 {[%clk 0:01:57.3]} 13... g6 {[%clk 0:02:54.4]}
14. Rfe1 {[%clk 0:01:58]} 14... Bg4 {[%clk 0:02:40.3]} 15. Re2 {[%clk
0:01:50.4]} 15... Qd7 {[%clk 0:02:39.3]} 16. Rae1 {[%clk 0:01:51.1]} 16... Rae8
{[%clk 0:02:36]} 17. c4 {[%clk 0:01:45.6]} 17... Bb4 {[%clk 0:02:33.2]} 18. c5
{[%clk 0:01:42.1]} 18... Nf5 {[%clk 0:02:15.5]} 19. Bxf5 {[%clk 0:00:50.9]}
19... Bxf5 {[%clk 0:02:13.3]} 20. Qa4 {[%clk 0:00:46.1]} 20... Bxd2 {[%clk
0:02:04.2]} 21. Nxd2 {[%clk 0:00:45.3]} 21... Bd3 {[%clk 0:01:58.1]} 22. Rxe8
{[%clk 0:00:42.7]} 22... Rxe8 {[%clk 0:01:59.3]} 23. Rxe8+ {[%clk 0:00:40.6]}
23... Qxe8 {[%clk 0:02:01.2]} 24. Nf3 {[%clk 0:00:39.8]} 24... a6 {[%clk
0:01:25.5]} 25. Qb3 {[%clk 0:00:39.7]} 25... Qe2 {[%clk 0:00:58.9]} 26. Qxb7
{[%clk 0:00:40.1]} 26... Qf1+ {[%clk 0:00:51.1]} 27. Kh2 {[%clk 0:00:41]} 27...
Qxf2 {[%clk 0:00:41.4]} 28. Qxc6 {[%clk 0:00:41.2]} 28... Be4 {[%clk 0:00:17.6]}
29. Qxf6 {[%clk 0:00:41.8]} 29... Bxf3 {[%clk 0:00:17.4]} 30. Qxf3 {[%clk
0:00:41.6]} 30... Qxd4 {[%clk 0:00:18.6]} 31. c6 {[%clk 0:00:40.6]} 31... Qc4
{[%clk 0:00:09]} 32. Qc3 {[%clk 0:00:36.7]} 32... Qg4 {[%clk 0:00:10.1]} 33. c7
{[%clk 0:00:33.3]} 33... Qc8 {[%clk 0:00:11.1]} 34. Qe5 {[%clk 0:00:28.2]} 34...
Kf7 {[%clk 0:00:11.4]} 35. Qxd5+ {[%clk 0:00:28.6]} 35... Ke7 {[%clk 0:00:12.9]}
36. Qc6 {[%clk 0:00:29.3]} 36... a5 {[%clk 0:00:12.5]} 37. b3 {[%clk 0:00:29.8]}
37... g5 {[%clk 0:00:12.1]} 38. a3 {[%clk 0:00:28.3]} 38... g4 {[%clk
0:00:13.1]} 39. b4 {[%clk 0:00:25.7]} 39... axb4 {[%clk 0:00:14.3]} 40. axb4
{[%clk 0:00:26.7]} 40... h5 {[%clk 0:00:13.2]} 41. b5 {[%clk 0:00:25.9]} 41...
h4 {[%clk 0:00:14.8]} 42. gxh4 {[%clk 0:00:25.5]} 42... g3+ {[%clk 0:00:13.2]}
43. Kxg3 {[%clk 0:00:25.6]} 43... Qg8+ {[%clk 0:00:14.3]} 44. Kh2 {[%clk
0:00:26.2]} 44... Qg4 {[%clk 0:00:10.8]} 45. c8=Q {[%clk 0:00:21.1]} 45... Qxh4+
{[%clk 0:00:05.1]} 46. Qh3 {[%clk 0:00:21.4]} 46... Qf4+ {[%clk 0:00:06.3]} 47.
g3 {[%clk 0:00:21.2]} 47... Qf2+ {[%clk 0:00:04.9]} 48. Qcg2 {[%clk 0:00:21.7]}
48... Qf7 {[%clk 0:00:05.6]} 49. Qh4+ {[%clk 0:00:21.8]} 1-0

[Event "*** MasterClass Titled Tuesday Blitz"]
[Site "Chess.com"]
[Date "2017.08.01"]
[Round "6"]
[White "CheckThis4"]
[Black "pedroholly22"]
[Result "0-1"]
[WhiteElo "2292"]
[BlackElo "2285"]
[TimeControl "180+2"]
[EndTime "14:19:42 PDT"]
[Termination "pedroholly22 won on time"]

1. e4 {[%clk 0:03:01.9]} 1... e6 {[%clk 0:02:58.6]} 2. d4 {[%clk 0:03:00]} 2...
d5 {[%clk 0:02:59.9]} 3. Nd2 {[%clk 0:03:01.4]} 3... c5 {[%clk 0:02:57.6]} 4.
Ngf3 {[%clk 0:03:00.4]} 4... cxd4 {[%clk 0:02:56.1]} 5. Nxd4 {[%clk 0:02:56.3]}
5... Nc6 {[%clk 0:02:56.2]} 6. Nxc6 {[%clk 0:02:57.3]} 6... bxc6 {[%clk
0:02:56.8]} 7. Bd3 {[%clk 0:02:55.3]} 7... Nf6 {[%clk 0:02:57.9]} 8. O-O {[%clk
0:02:55]} 8... Bd6 {[%clk 0:02:56.8]} 9. b3 {[%clk 0:02:51.8]} 9... Qc7 {[%clk
0:02:51.4]} 10. h3 {[%clk 0:02:47.2]} 10... h5 {[%clk 0:02:50.5]} 11. Bb2 {[%clk
0:02:44.7]} 11... Ng4 {[%clk 0:02:46]} 12. Nf3 {[%clk 0:02:37.3]} 12... f6
{[%clk 0:02:35.3]} 13. Qe2 {[%clk 0:02:33.3]} 13... Kf7 {[%clk 0:02:29.3]} 14.
c4 {[%clk 0:02:17.9]} 14... dxc4 {[%clk 0:02:15.5]} 15. Bxc4 {[%clk 0:02:16.1]}
15... Bc5 {[%clk 0:02:09.5]} 16. hxg4 {[%clk 0:02:02.7]} 16... hxg4 {[%clk
0:02:06.3]} 17. Ne5+ {[%clk 0:02:02.4]} 17... fxe5 {[%clk 0:01:58.9]} 18. Qxg4
{[%clk 0:02:02.6]} 18... Rh6 {[%clk 0:01:54.4]} 19. Rad1 {[%clk 0:01:48.3]}
19... Bd7 {[%clk 0:01:53.5]} 20. Bxe5 {[%clk 0:00:48.6]} 20... Qxe5 {[%clk
0:01:43.1]} 21. Rxd7+ {[%clk 0:00:49.2]} 21... Ke8 {[%clk 0:01:42.4]} 22. Rfd1
{[%clk 0:00:48.7]} 22... Rf6 {[%clk 0:01:06.3]} 23. R7d2 {[%clk 0:00:38.8]}
23... Kf7 {[%clk 0:00:46.6]} 24. Rd7+ {[%clk 0:00:35.7]} 24... Be7 {[%clk
0:00:47.5]} 25. Rxe7+ {[%clk 0:00:33.6]} 25... Kxe7 {[%clk 0:00:46.2]} 26. Qxg7+
{[%clk 0:00:34.5]} 26... Ke8 {[%clk 0:00:46.2]} 27. Rd7 {[%clk 0:00:16.8]} 27...
Qc5 {[%clk 0:00:36.9]} 28. Rd2 {[%clk 0:00:11.9]} 28... Qe7 {[%clk 0:00:34]} 29.
Qg8+ {[%clk 0:00:09.8]} 29... Rf8 {[%clk 0:00:33.5]} 30. Qg6+ {[%clk 0:00:10.3]}
30... Qf7 {[%clk 0:00:34.3]} 31. Qg3 {[%clk 0:00:10.8]} 31... Rd8 {[%clk
0:00:33.7]} 32. Rxd8+ {[%clk 0:00:10.6]} 32... Kxd8 {[%clk 0:00:35.6]} 33. Qb8+
{[%clk 0:00:11.6]} 33... Ke7 {[%clk 0:00:36.3]} 34. Qxa7+ {[%clk 0:00:13]} 34...
Kf6 {[%clk 0:00:37.5]} 35. Qd4+ {[%clk 0:00:13.9]} 35... Ke7 {[%clk 0:00:35.4]}
36. Qc5+ {[%clk 0:00:14.7]} 36... Kf6 {[%clk 0:00:36.2]} 37. e5+ {[%clk
0:00:15.8]} 37... Kg7 {[%clk 0:00:37.4]} 38. Qe3 {[%clk 0:00:15.8]} 38... Qg6
{[%clk 0:00:37.7]} 39. Bd3 {[%clk 0:00:15.6]} 39... Qg4 {[%clk 0:00:37.3]} 40.
g3 {[%clk 0:00:15.1]} 40... Rf3 {[%clk 0:00:30.8]} 41. Qa7+ {[%clk 0:00:13.8]}
41... Rf7 {[%clk 0:00:31.4]} 42. Qe3 {[%clk 0:00:14.2]} 42... Rf3 {[%clk
0:00:27.5]} 43. Qe2 {[%clk 0:00:11.6]} 43... Rf4 {[%clk 0:00:22.7]} 44. Qxg4+
{[%clk 0:00:10.3]} 44... Rxg4 {[%clk 0:00:24.3]} 45. Kg2 {[%clk 0:00:10.8]}
45... Rd4 {[%clk 0:00:25.1]} 46. Bc4 {[%clk 0:00:11.5]} 46... Rd2 {[%clk
0:00:25.7]} 47. a4 {[%clk 0:00:12.1]} 47... Kg6 {[%clk 0:00:26]} 48. Bxe6 {[%clk
0:00:11.3]} 48... c5 {[%clk 0:00:20.2]} 0-1

[Event "*** MasterClass Titled Tuesday Blitz"]
[Site "Chess.com"]
[Date "2017.08.01"]
[Round "6"]
[White "IMcoach"]
[Black "KNVB"]
[Result "1-0"]
[WhiteElo "2349"]
[BlackElo "2500"]
[TimeControl "180+2"]
[EndTime "14:19:46 PDT"]
[Termination "IMcoach won by resignation"]

1. e4 {[%clk 0:02:58.7]} 1... b6 {[%clk 0:03:00.8]} 2. g3 {[%clk 0:02:59.1]}
2... Bb7 {[%clk 0:03:02]} 3. Bg2 {[%clk 0:03:00.5]} 3... g6 {[%clk 0:03:03.4]}
4. d3 {[%clk 0:02:57.4]} 4... Bg7 {[%clk 0:03:04.7]} 5. c3 {[%clk 0:02:56.3]}
5... e6 {[%clk 0:03:06.1]} 6. f4 {[%clk 0:02:55.8]} 6... Ne7 {[%clk 0:03:07.5]}
7. Nf3 {[%clk 0:02:56.9]} 7... O-O {[%clk 0:03:09]} 8. O-O {[%clk 0:02:58]} 8...
d6 {[%clk 0:03:10.5]} 9. Na3 {[%clk 0:02:53.3]} 9... c5 {[%clk 0:03:10.6]} 10.
Nc2 {[%clk 0:02:51.4]} 10... Nbc6 {[%clk 0:03:11.5]} 11. Be3 {[%clk 0:02:46.4]}
11... f5 {[%clk 0:03:12.5]} 12. h4 {[%clk 0:02:38.9]} 12... h6 {[%clk
0:03:04.9]} 13. h5 {[%clk 0:02:31.3]} 13... gxh5 {[%clk 0:03:05.9]} 14. Nh4
{[%clk 0:02:32.2]} 14... Qe8 {[%clk 0:03:07.4]} 15. Bf3 {[%clk 0:02:32.2]} 15...
d5 {[%clk 0:03:01.7]} 16. Bxh5 {[%clk 0:02:31.8]} 16... Qd7 {[%clk 0:03:03.3]}
17. e5 {[%clk 0:02:18.3]} 17... d4 {[%clk 0:03:02.5]} 18. cxd4 {[%clk
0:02:13.1]} 18... Nxd4 {[%clk 0:03:02.8]} 19. Nxd4 {[%clk 0:02:06.9]} 19... cxd4
{[%clk 0:03:04.7]} 20. Bf2 {[%clk 0:02:05.3]} 20... Rac8 {[%clk 0:03:01.5]} 21.
Nf3 {[%clk 0:01:54]} 21... Qd5 {[%clk 0:02:35]} 22. Qe2 {[%clk 0:01:33.5]} 22...
Rfd8 {[%clk 0:02:30.8]} 23. Be1 {[%clk 0:01:24.3]} 23... a5 {[%clk 0:02:20]} 24.
Kh2 {[%clk 0:01:22.7]} 24... Nc6 {[%clk 0:02:14.4]} 25. a3 {[%clk 0:01:17.7]}
25... Qb3 {[%clk 0:02:13.4]} 26. Rg1 {[%clk 0:01:13]} 26... Ne7 {[%clk
0:02:09.9]} 27. Rd1 {[%clk 0:00:56.3]} 27... Rc2 {[%clk 0:02:05.2]} 28. Rd2
{[%clk 0:00:56.8]} 28... Rxd2 {[%clk 0:01:50.4]} 29. Qxd2 {[%clk 0:00:55.1]}
29... Ba6 {[%clk 0:01:42.7]} 30. g4 {[%clk 0:00:51.6]} 30... Qxd3 {[%clk
0:01:26.5]} 31. g5 {[%clk 0:00:48.6]} 31... Qxd2+ {[%clk 0:01:16.8]} 32. Bxd2
{[%clk 0:00:47.7]} 32... Kh7 {[%clk 0:01:17.9]} 33. Bf7 {[%clk 0:00:43.1]} 33...
Be2 {[%clk 0:00:59.2]} 34. gxh6 {[%clk 0:00:32.2]} 34... Bxh6 {[%clk 0:00:44.3]}
35. Ng5+ {[%clk 0:00:33.3]} 35... Bxg5 {[%clk 0:00:45.5]} 36. fxg5 {[%clk
0:00:34.6]} 36... Bc4 {[%clk 0:00:32.1]} 37. g6+ {[%clk 0:00:34.3]} 37... Kg7
{[%clk 0:00:32.1]} 38. Bg5 {[%clk 0:00:35.5]} 38... Rh8+ {[%clk 0:00:22.7]} 39.
Kg3 {[%clk 0:00:35.2]} 39... Nxg6 {[%clk 0:00:17]} 40. Bxe6 {[%clk 0:00:12.5]}
40... Rh5 {[%clk 0:00:06.7]} 41. Bf6+ {[%clk 0:00:12.9]} 41... Kh6 {[%clk
0:00:07.4]} 42. Bxc4 {[%clk 0:00:14]} 42... f4+ {[%clk 0:00:05.9]} 43. Kf3
{[%clk 0:00:13.3]} 43... Rh3+ {[%clk 0:00:07]} 44. Ke4 {[%clk 0:00:13.4]} 44...
d3 {[%clk 0:00:07.2]} 45. Kf5 {[%clk 0:00:12.1]} 45... Rh5+ {[%clk 0:00:06.1]}
46. Bg5+ {[%clk 0:00:10.4]} 46... Kg7 {[%clk 0:00:06.7]} 47. Bxd3 {[%clk
0:00:10.8]} 47... f3 {[%clk 0:00:07.4]} 48. e6 {[%clk 0:00:07.1]} 48... f2
{[%clk 0:00:06.4]} 49. Rf1 {[%clk 0:00:08.3]} 49... Rh2 {[%clk 0:00:04.7]} 50.
Bf6+ {[%clk 0:00:08.4]} 50... Kh6 {[%clk 0:00:05.2]} 51. Bg5+ {[%clk 0:00:08.8]}
51... Kg7 {[%clk 0:00:05.9]} 52. e7 {[%clk 0:00:10.1]} 52... Kf7 {[%clk
0:00:03.8]} 53. Bc4+ {[%clk 0:00:10.6]} 53... Ke8 {[%clk 0:00:05.2]} 54. Bb5+
{[%clk 0:00:11.7]} 54... Kf7 {[%clk 0:00:05.5]} 55. e8=Q+ {[%clk 0:00:13]} 55...
Kg7 {[%clk 0:00:07.4]} 56. Qxg6+ {[%clk 0:00:14]} 1-0

[Event "*** MasterClass Titled Tuesday Blitz"]
[Site "Chess.com"]
[Date "2017.08.01"]
[Round "6"]
[White "YaWaleriy"]
[Black "stepanosinovsky"]
[Result "1-0"]
[WhiteElo "2220"]
[BlackElo "2280"]
[TimeControl "180+2"]
[EndTime "14:20:04 PDT"]
[Termination "YaWaleriy won by resignation"]

1. d4 {[%clk 0:03:01.9]} 1... Nf6 {[%clk 0:03:00]} 2. c4 {[%clk 0:03:03]} 2...
g6 {[%clk 0:03:01.6]} 3. Nc3 {[%clk 0:03:04.1]} 3... Bg7 {[%clk 0:03:03.5]} 4.
e4 {[%clk 0:03:05.1]} 4... O-O {[%clk 0:03:04.9]} 5. Be2 {[%clk 0:03:06.7]} 5...
d6 {[%clk 0:03:02.4]} 6. Nf3 {[%clk 0:03:06.9]} 6... e5 {[%clk 0:03:03.2]} 7. d5
{[%clk 0:03:07.9]} 7... a5 {[%clk 0:03:03.3]} 8. Bg5 {[%clk 0:03:09.3]} 8... h6
{[%clk 0:03:00.6]} 9. Bh4 {[%clk 0:03:10.2]} 9... Na6 {[%clk 0:03:00.3]} 10. Nd2
{[%clk 0:03:11.5]} 10... Qe8 {[%clk 0:02:58.8]} 11. a3 {[%clk 0:03:12.8]} 11...
Bd7 {[%clk 0:02:45.1]} 12. b3 {[%clk 0:03:07.6]} 12... Nh7 {[%clk 0:02:45]} 13.
O-O {[%clk 0:03:07.3]} 13... f5 {[%clk 0:02:43.4]} 14. f3 {[%clk 0:03:07.7]}
14... g5 {[%clk 0:02:31.5]} 15. Bf2 {[%clk 0:03:08]} 15... f4 {[%clk 0:02:32.6]}
16. b4 {[%clk 0:02:49.8]} 16... axb4 {[%clk 0:02:31.9]} 17. axb4 {[%clk
0:02:50.3]} 17... h5 {[%clk 0:01:32.6]} 18. Rb1 {[%clk 0:02:34.1]} 18... Qg6
{[%clk 0:01:28.5]} 19. c5 {[%clk 0:02:34.6]} 19... g4 {[%clk 0:01:28.6]} 20. c6
{[%clk 0:02:35.6]} 20... Bc8 {[%clk 0:01:23.4]} 21. cxb7 {[%clk 0:02:31.3]}
21... Bxb7 {[%clk 0:01:23.9]} 22. b5 {[%clk 0:02:22.4]} 22... g3 {[%clk
0:01:21.3]} 23. bxa6 {[%clk 0:02:18.7]} 23... gxf2+ {[%clk 0:01:21.4]} 24. Rxf2
{[%clk 0:02:19.6]} 24... Bxa6 {[%clk 0:01:22.9]} 25. Bxa6 {[%clk 0:02:15.3]}
25... Rxa6 {[%clk 0:01:24.8]} 26. Nb5 {[%clk 0:02:13.3]} 26... Rf7 {[%clk
0:01:19.3]} 27. Rc1 {[%clk 0:02:13.7]} 27... Bf6 {[%clk 0:00:50]} 28. Rxc7
{[%clk 0:02:04.3]} 28... Bh4 {[%clk 0:00:47]} 29. Rf1 {[%clk 0:01:56]} 29... Ng5
{[%clk 0:00:21.6]} 30. Kh1 {[%clk 0:01:53.7]} 30... Ra2 {[%clk 0:00:19.7]} 31.
Rxf7 {[%clk 0:01:48.1]} 31... Nxf7 {[%clk 0:00:20]} 32. Nc3 {[%clk 0:01:34.2]}
32... Rb2 {[%clk 0:00:18.7]} 33. Qc1 {[%clk 0:01:35]} 33... Rb8 {[%clk
0:00:17.5]} 34. Qa3 {[%clk 0:01:29.3]} 34... Kh7 {[%clk 0:00:16.4]} 35. Nc4
{[%clk 0:01:24.6]} 35... Rg8 {[%clk 0:00:15.5]} 36. Qa2 {[%clk 0:01:25.6]} 36...
Rg7 {[%clk 0:00:14.1]} 37. Nb5 {[%clk 0:01:24.6]} 37... Bd8 {[%clk 0:00:13.5]}
38. Rg1 {[%clk 0:01:21.7]} 38... h4 {[%clk 0:00:12.5]} 39. Qa3 {[%clk
0:01:12.2]} 39... Be7 {[%clk 0:00:10.4]} 40. Qb2 {[%clk 0:01:09.2]} 40... Ng5
{[%clk 0:00:09.7]} 41. Qf2 {[%clk 0:01:06.2]} 41... Qh5 {[%clk 0:00:09.9]} 42.
Rf1 {[%clk 0:01:03.8]} 42... h3 {[%clk 0:00:04.3]} 43. g3 {[%clk 0:01:02.5]}
43... fxg3 {[%clk 0:00:05.3]} 44. hxg3 {[%clk 0:01:03.4]} 44... Rf7 {[%clk
0:00:06.5]} 45. Nd2 {[%clk 0:00:59.3]} 45... Qg6 {[%clk 0:00:06.9]} 46. Qe3
{[%clk 0:00:53.8]} 46... Bd8 {[%clk 0:00:07.4]} 47. f4 {[%clk 0:00:49.4]} 47...
Ba5 {[%clk 0:00:07.4]} 48. fxg5 {[%clk 0:00:48.5]} 48... Bxd2 {[%clk 0:00:08.6]}
49. Rxf7+ {[%clk 0:00:47.7]} 49... Qxf7 {[%clk 0:00:10.5]} 50. Qxd2 {[%clk
0:00:47.4]} 50... Qf1+ {[%clk 0:00:10.6]} 51. Kh2 {[%clk 0:00:48.6]} 51... Qxb5
{[%clk 0:00:12.5]} 52. Kxh3 {[%clk 0:00:48.4]} 52... Qf1+ {[%clk 0:00:12]} 53.
Kg4 {[%clk 0:00:48.9]} 53... Kg6 {[%clk 0:00:11.4]} 54. Qe3 {[%clk 0:00:38.4]}
54... Qb1 {[%clk 0:00:05.9]} 55. Qf3 {[%clk 0:00:38.4]} 55... Kg7 {[%clk
0:00:07.2]} 56. Kf5 {[%clk 0:00:37]} 56... Qb7 {[%clk 0:00:06.8]} 57. Kg4 {[%clk
0:00:30.8]} 57... Qb4 {[%clk 0:00:02.5]} 58. g6 {[%clk 0:00:30.3]} 58... Kg8
{[%clk 0:00:03.7]} 59. Qf7+ {[%clk 0:00:30.1]} 1-0

[Event "*** MasterClass Titled Tuesday Blitz"]
[Site "Chess.com"]
[Date "2017.08.01"]
[Round "6"]
[White "Tash_Boy"]
[Black "Bryakin_Mikhail"]
[Result "1-0"]
[WhiteElo "2451"]
[BlackElo "2523"]
[TimeControl "180+2"]
[EndTime "14:20:20 PDT"]
[Termination "Tash_Boy won on time"]

1. e4 {[%clk 0:03:01.9]} 1... c6 {[%clk 0:02:57.8]} 2. d4 {[%clk 0:03:02.1]}
2... d5 {[%clk 0:02:59.7]} 3. Nd2 {[%clk 0:03:03.7]} 3... dxe4 {[%clk
0:02:59.6]} 4. Nxe4 {[%clk 0:03:05.2]} 4... Nf6 {[%clk 0:03:01.5]} 5. Nxf6+
{[%clk 0:03:05.6]} 5... gxf6 {[%clk 0:03:03.4]} 6. Nf3 {[%clk 0:03:03.6]} 6...
h5 {[%clk 0:03:00.4]} 7. Be2 {[%clk 0:03:03.4]} 7... h4 {[%clk 0:02:57.6]} 8.
O-O {[%clk 0:03:04.4]} 8... h3 {[%clk 0:02:58.1]} 9. g3 {[%clk 0:03:05.1]} 9...
Bf5 {[%clk 0:02:55.1]} 10. c3 {[%clk 0:03:06.1]} 10... Nd7 {[%clk 0:02:55.5]}
11. b4 {[%clk 0:03:05.2]} 11... e6 {[%clk 0:02:54.6]} 12. Bf4 {[%clk 0:03:06.8]}
12... Nb6 {[%clk 0:02:54.9]} 13. c4 {[%clk 0:03:05.2]} 13... Bxb4 {[%clk
0:02:50.3]} 14. Qb3 {[%clk 0:03:03.1]} 14... Be7 {[%clk 0:02:46.2]} 15. a4
{[%clk 0:03:02.8]} 15... Qd7 {[%clk 0:02:43.7]} 16. a5 {[%clk 0:03:02.7]} 16...
Nc8 {[%clk 0:02:44.7]} 17. Rfd1 {[%clk 0:02:56]} 17... Bd6 {[%clk 0:02:27.5]}
18. Qe3 {[%clk 0:02:53.8]} 18... Bxf4 {[%clk 0:02:10.3]} 19. Qxf4 {[%clk
0:02:54.7]} 19... Qd6 {[%clk 0:02:11.5]} 20. Qe3 {[%clk 0:02:53.7]} 20... Ne7
{[%clk 0:02:06.7]} 21. Ra2 {[%clk 0:02:44.1]} 21... Rd8 {[%clk 0:02:03.1]} 22.
Rb2 {[%clk 0:02:43.4]} 22... Rd7 {[%clk 0:02:04.4]} 23. Ne1 {[%clk 0:01:44.2]}
23... Kf8 {[%clk 0:01:57.3]} 24. Bf3 {[%clk 0:01:38.6]} 24... Kg7 {[%clk
0:01:55]} 25. Rdd2 {[%clk 0:01:20.4]} 25... Bg6 {[%clk 0:01:54.9]} 26. g4 {[%clk
0:01:17.5]} 26... f5 {[%clk 0:01:50.6]} 27. g5 {[%clk 0:00:59.6]} 27... Rh4
{[%clk 0:01:43.9]} 28. Nc2 {[%clk 0:00:53.3]} 28... f4 {[%clk 0:01:34.5]} 29.
Qc3 {[%clk 0:00:53.9]} 29... Kg8 {[%clk 0:01:26.2]} 30. Kh1 {[%clk 0:00:46.3]}
30... Nf5 {[%clk 0:01:24.6]} 31. d5 {[%clk 0:00:46.7]} 31... cxd5 {[%clk
0:01:09.2]} 32. cxd5 {[%clk 0:00:47.4]} 32... Ne7 {[%clk 0:01:04.6]} 33. Nb4
{[%clk 0:00:46.6]} 33... e5 {[%clk 0:01:02.1]} 34. Qc4 {[%clk 0:00:35.9]} 34...
Rc7 {[%clk 0:00:50.7]} 35. Qe2 {[%clk 0:00:32.4]} 35... Nf5 {[%clk 0:00:39.2]}
36. Rd1 {[%clk 0:00:26.4]} 36... Nd4 {[%clk 0:00:39.2]} 37. Rxd4 {[%clk
0:00:26.5]} 37... exd4 {[%clk 0:00:41.1]} 38. Qd2 {[%clk 0:00:26]} 38... Qe5
{[%clk 0:00:27.9]} 39. a6 {[%clk 0:00:27.2]} 39... Qxg5 {[%clk 0:00:25.8]} 40.
axb7 {[%clk 0:00:26.8]} 40... Rxb7 {[%clk 0:00:27.7]} 41. d6 {[%clk 0:00:27.9]}
41... Rg4 {[%clk 0:00:26.4]} 42. Qe1 {[%clk 0:00:23.6]} 42... Rg2 {[%clk
0:00:21.5]} 43. Bxb7 {[%clk 0:00:22.7]} 43... Bf5 {[%clk 0:00:14.5]} 44. Bf3
{[%clk 0:00:20.3]} 44... Bg4 {[%clk 0:00:13.9]} 45. Bxg4 {[%clk 0:00:17.1]}
45... Qxg4 {[%clk 0:00:14.4]} 46. Qe8+ {[%clk 0:00:17.8]} 46... Kg7 {[%clk
0:00:15.8]} 47. Qe5+ {[%clk 0:00:18.7]} 47... Kh7 {[%clk 0:00:14.6]} 48. Qe4+
{[%clk 0:00:19.9]} 48... Kh6 {[%clk 0:00:15.8]} 49. Rb1 {[%clk 0:00:20.4]} 49...
Rxf2 {[%clk 0:00:13.1]} 50. Rg1 {[%clk 0:00:20.2]} 50... Rg2 {[%clk 0:00:13.2]}
51. Rf1 {[%clk 0:00:19.5]} 51... Rf2 {[%clk 0:00:10.2]} 52. Rg1 {[%clk
0:00:17.7]} 52... Rg2 {[%clk 0:00:11.6]} 53. Re1 {[%clk 0:00:16.4]} 53... Rf2
{[%clk 0:00:06.5]} 54. Nd3 {[%clk 0:00:16.4]} 54... Rd2 {[%clk 0:00:03.3]} 55.
d7 {[%clk 0:00:16.7]} 1-0

[Event "*** MasterClass Titled Tuesday Blitz"]
[Site "Chess.com"]
[Date "2017.08.01"]
[Round "6"]
[White "axlbvRR"]
[Black "stefanodinn"]
[Result "0-1"]
[WhiteElo "1967"]
[BlackElo "2171"]
[TimeControl "180+2"]
[EndTime "14:20:41 PDT"]
[Termination "stefanodinn won on time"]

1. d4 {[%clk 0:03:01.9]} 1... Nf6 {[%clk 0:02:59.9]} 2. Nf3 {[%clk 0:03:02]}
2... d5 {[%clk 0:02:58.6]} 3. Bf4 {[%clk 0:03:03.2]} 3... e6 {[%clk 0:02:55.5]}
4. e3 {[%clk 0:03:04.5]} 4... Bd6 {[%clk 0:02:56.2]} 5. Bg3 {[%clk 0:03:05.4]}
5... b6 {[%clk 0:02:51.2]} 6. Bd3 {[%clk 0:03:05.4]} 6... Ba6 {[%clk 0:02:51.1]}
7. Ne5 {[%clk 0:03:00.2]} 7... Bxd3 {[%clk 0:02:48.4]} 8. Qxd3 {[%clk
0:02:59.9]} 8... O-O {[%clk 0:02:48.4]} 9. O-O {[%clk 0:02:57.3]} 9... c5 {[%clk
0:02:48.2]} 10. c3 {[%clk 0:02:56.2]} 10... Ne4 {[%clk 0:02:42.9]} 11. Nd2
{[%clk 0:02:50.7]} 11... Nxg3 {[%clk 0:02:43.2]} 12. hxg3 {[%clk 0:02:51.6]}
12... Nd7 {[%clk 0:02:36.9]} 13. f4 {[%clk 0:02:47.1]} 13... f6 {[%clk
0:02:26.8]} 14. Nef3 {[%clk 0:02:46.3]} 14... f5 {[%clk 0:02:05.8]} 15. Ne5
{[%clk 0:02:45.5]} 15... c4 {[%clk 0:01:59.1]} 16. Qe2 {[%clk 0:02:35.5]} 16...
Nf6 {[%clk 0:01:59.2]} 17. Kf2 {[%clk 0:02:21.9]} 17... b5 {[%clk 0:01:58.5]}
18. Rh1 {[%clk 0:02:20.6]} 18... Bxe5 {[%clk 0:01:41.7]} 19. dxe5 {[%clk
0:02:20.6]} 19... Ng4+ {[%clk 0:01:43.3]} 20. Kg1 {[%clk 0:02:10.4]} 20... Qb6
{[%clk 0:01:42.1]} 21. Re1 {[%clk 0:02:08.9]} 21... b4 {[%clk 0:01:28]} 22. Nf3
{[%clk 0:02:06.9]} 22... bxc3 {[%clk 0:01:15.5]} 23. bxc3 {[%clk 0:02:06.9]}
23... Rab8 {[%clk 0:01:12.7]} 24. Nd4 {[%clk 0:02:00.2]} 24... h6 {[%clk
0:01:08.1]} 25. Rh4 {[%clk 0:01:57]} 25... Rfe8 {[%clk 0:00:47.8]} 26. Rxg4
{[%clk 0:01:28.8]} 26... fxg4 {[%clk 0:00:47.8]} 27. Qxg4 {[%clk 0:01:30.7]}
27... Rb7 {[%clk 0:00:32.1]} 28. Rf1 {[%clk 0:01:11.4]} 28... Rf7 {[%clk
0:00:20.8]} 29. Qh3 {[%clk 0:01:03.5]} 29... a5 {[%clk 0:00:19.6]} 30. g4 {[%clk
0:01:03]} 30... Qb2 {[%clk 0:00:14.1]} 31. Qg3 {[%clk 0:00:47.9]} 31... Qxc3
{[%clk 0:00:13.3]} 32. f5 {[%clk 0:00:48.8]} 32... exf5 {[%clk 0:00:13.4]} 33.
gxf5 {[%clk 0:00:49.5]} 33... Kh8 {[%clk 0:00:05.1]} 34. e6 {[%clk 0:00:35.8]}
34... Rf6 {[%clk 0:00:04.4]} 35. Qf3 {[%clk 0:00:31.9]} 35... a4 {[%clk
0:00:03.6]} 36. g4 {[%clk 0:00:18.2]} 36... Qb2 {[%clk 0:00:02.4]} 37. Rf2
{[%clk 0:00:18.5]} 37... Qc1+ {[%clk 0:00:02.6]} 38. Kg2 {[%clk 0:00:19.6]}
38... c3 {[%clk 0:00:02.2]} 39. Kg3 {[%clk 0:00:15.6]} 39... Kg8 {[%clk
0:00:02.4]} 40. Qxd5 {[%clk 0:00:09.6]} 40... Qxe3+ {[%clk 0:00:03.2]} 41. Rf3
{[%clk 0:00:11.5]} 41... Qd2 {[%clk 0:00:03.5]} 42. Rf2 {[%clk 0:00:07.8]} 42...
Qe3+ {[%clk 0:00:03.8]} 43. Rf3 {[%clk 0:00:08.6]} 43... Qg1+ {[%clk 0:00:05.4]}
44. Kf4 {[%clk 0:00:08.4]} 44... Kh7 {[%clk 0:00:06]} 45. Ne2 {[%clk 0:00:03.1]}
45... Qe1 {[%clk 0:00:05.7]} 46. Nxc3 {[%clk 0:00:03]} 46... Qc1+ {[%clk
0:00:05.5]} 47. Kg3 {[%clk 0:00:03.5]} 47... Rexe6 {[%clk 0:00:05.5]} 48. fxe6
{[%clk 0:00:03.3]} 48... Qe1+ {[%clk 0:00:05]} 49. Kg2 {[%clk 0:00:03.7]} 49...
Rxe6 {[%clk 0:00:05.7]} 50. Qd3+ {[%clk 0:00:03.1]} 50... Kg8 {[%clk 0:00:06.5]}
51. Qd5 {[%clk 0:00:03]} 51... Kh7 {[%clk 0:00:07.2]} 52. Qd3+ {[%clk
0:00:03.4]} 52... Kg8 {[%clk 0:00:07.9]} 53. Qd5 {[%clk 0:00:03.4]} 53... Kh7
{[%clk 0:00:07.6]} 54. Qd3+ {[%clk 0:00:04.3]} 54... Kh8 {[%clk 0:00:08.3]} 55.
Qd8+ {[%clk 0:00:04.7]} 55... Kh7 {[%clk 0:00:09.4]} 56. Qd3+ {[%clk 0:00:05.4]}
56... Kg8 {[%clk 0:00:09.6]} 57. Qd8+ {[%clk 0:00:06.2]} 57... Re8 {[%clk
0:00:10.5]} 58. Qd5+ {[%clk 0:00:06]} 58... Kh8 {[%clk 0:00:11.3]} 59. Rf2
{[%clk 0:00:05.8]} 59... Qxc3 {[%clk 0:00:11.3]} 60. Qf5 {[%clk 0:00:06.2]}
60... Qd4 {[%clk 0:00:09.1]} 61. g5 {[%clk 0:00:05]} 61... Qe5 {[%clk
0:00:06.8]} 0-1